[Event "Titled Tuesday Blitz November 9 2021"]
[White "Tari, Aryan"]
[Black "Stromboli, Ettore"]
[WhiteFideId "1510045"]
[BlackFideId "813761"]
[WhiteElo "2656"]
[BlackElo "2414"]
[Result "1-0"]
[Round "01"]
[TimeControl "180+1"]
[Date "2021.11.09"]
[WhiteClock "0:00:24"]
[BlackClock "0:00:12"]

1. c4 {[%clk 0:02:56]}  b6 {[%clk 0:02:59]} 2. e4 {[%clk 0:02:46]}  Bb7 {[%clk 0:02:58]} 3. Nc3 {[%clk 0:02:46]}  e6 {[%clk 0:02:57]} 4. Nge2 {[%clk 0:02:34]}  Nf6 {[%clk 0:02:48]} 5. f3 {[%clk 0:02:31]}  d5 {[%clk 0:02:47]} 6. cxd5 {[%clk 0:02:28]}  exd5 {[%clk 0:02:48]} 7. e5 {[%clk 0:02:28]}  d4 {[%clk 0:02:42]} 8. exf6 {[%clk 0:02:26]}  dxc3 {[%clk 0:02:41]} 9. dxc3 {[%clk 0:02:04]}  Qxf6 {[%clk 0:02:39]} 10. Nd4 {[%clk 0:02:03]}  Be7 {[%clk 0:02:32]} 11. Bb5+ {[%clk 0:01:59]}  c6 {[%clk 0:02:31]} 12. Bd3 {[%clk 0:01:59]}  O-O {[%clk 0:02:30]} 13. O-O {[%clk 0:01:58]}  Nd7 {[%clk 0:02:25]} 14. Be3 {[%clk 0:01:55]}  Rfe8 {[%clk 0:02:24]} 15. Bf2 {[%clk 0:01:52]}  Ne5 {[%clk 0:02:24]} 16. Be4 {[%clk 0:01:49]}  Rad8 {[%clk 0:02:17]} 17. Qc2 {[%clk 0:01:49]}  g6 {[%clk 0:02:05]} 18. Rad1 {[%clk 0:01:44]}  Bf8 {[%clk 0:02:05]} 19. Kh1 {[%clk 0:01:43]}  Bg7 {[%clk 0:02:05]} 20. Bg3 {[%clk 0:01:41]}  Nc4 {[%clk 0:02:04]} 21. Bf2 {[%clk 0:01:39]}  Ba8 {[%clk 0:01:59]} 22. b3 {[%clk 0:01:36]}  Ne5 {[%clk 0:01:57]} 23. c4 {[%clk 0:01:33]}  c5 {[%clk 0:01:56]} 24. Bxa8 {[%clk 0:01:24]}  Rxa8 {[%clk 0:01:49]} 25. Nb5 {[%clk 0:01:24]}  Red8 {[%clk 0:01:39]} 26. Nc7 {[%clk 0:01:22]}  Rxd1 {[%clk 0:01:32]} 27. Rxd1 {[%clk 0:01:23]}  Rd8 {[%clk 0:01:29]} 28. Nd5 {[%clk 0:01:23]}  Qe6 {[%clk 0:01:23]} 29. Re1 {[%clk 0:01:19]}  Qd7 {[%clk 0:01:02]} 30. Bh4 {[%clk 0:01:04]}  Re8 {[%clk 0:00:48]} 31. Qe2 {[%clk 0:01:02]}  Kf8 {[%clk 0:00:43]} 32. Bg3 {[%clk 0:00:54]}  f6 {[%clk 0:00:28]} 33. Qd2 {[%clk 0:00:46]}  Nc6 {[%clk 0:00:24]} 34. Rxe8+ {[%clk 0:00:44]}  Qxe8 {[%clk 0:00:23]} 35. h4 {[%clk 0:00:45]}  Kf7 {[%clk 0:00:22]} 36. Qf4 {[%clk 0:00:43]}  Qe5 {[%clk 0:00:20]} 37. Qg4 {[%clk 0:00:42]}  f5 {[%clk 0:00:20]} 38. Bxe5 {[%clk 0:00:40]}  fxg4 {[%clk 0:00:20]} 39. Bxg7 {[%clk 0:00:39]}  Kxg7 {[%clk 0:00:20]} 40. fxg4 {[%clk 0:00:40]}  Nd4 {[%clk 0:00:19]} 41. Ne7 {[%clk 0:00:36]}  Nc2 {[%clk 0:00:18]} 42. Nc8 {[%clk 0:00:36]}  Nb4 {[%clk 0:00:18]} 43. a4 {[%clk 0:00:35]}  Na2 {[%clk 0:00:19]} 44. Nxa7 {[%clk 0:00:35]}  Nc1 {[%clk 0:00:20]} 45. Nc8 {[%clk 0:00:35]}  Nxb3 {[%clk 0:00:20]} 46. Nxb6 {[%clk 0:00:36]}  Kf6 {[%clk 0:00:18]} 47. Nd7+ {[%clk 0:00:32]}  Ke7 {[%clk 0:00:17]} 48. Ne5 {[%clk 0:00:32]}  Ke6 {[%clk 0:00:17]} 49. Nd3 {[%clk 0:00:33]}  Kd6 {[%clk 0:00:15]} 50. Kh2 {[%clk 0:00:31]}  Na5 {[%clk 0:00:16]} 51. Nb2 {[%clk 0:00:31]}  Ke5 {[%clk 0:00:16]} 52. Kg3 {[%clk 0:00:26]}  Ke4 {[%clk 0:00:16]} 53. h5 {[%clk 0:00:25]}  g5 {[%clk 0:00:16]} 54. h6 {[%clk 0:00:26]}  Ke3 {[%clk 0:00:15]} 55. Nd1+ {[%clk 0:00:24]}  Kd4 {[%clk 0:00:15]} 56. Nf2 {[%clk 0:00:22]}  Nxc4 {[%clk 0:00:15]} 57. Nh3 {[%clk 0:00:23]}  Nb6 {[%clk 0:00:14]} 58. a5 {[%clk 0:00:23]}  Nd5 {[%clk 0:00:13]} 59. Nxg5 {[%clk 0:00:22]}  c4 {[%clk 0:00:14]} 60. Nxh7 {[%clk 0:00:20]}  c3 {[%clk 0:00:13]} 61. Ng5 {[%clk 0:00:21]}  c2 {[%clk 0:00:14]} 62. h7 {[%clk 0:00:22]}  c1=Q {[%clk 0:00:14]} 63. h8=Q+ {[%clk 0:00:22]}  Kd3 {[%clk 0:00:12]} 64. Qh7+ {[%clk 0:00:23]}  Ke2 {[%clk 0:00:12]} 65. Qe4+ {[%clk 0:00:22]}  Ne3 {[%clk 0:00:13]} 66. Qf3+ {[%clk 0:00:22]}  Ke1 {[%clk 0:00:12]} 67. Qf2+ {[%clk 0:00:22]}  Kd1 {[%clk 0:00:12]} 68. Qg1+ {[%clk 0:00:22]}  Kd2 {[%clk 0:00:11]} 69. Qxc1+ {[%clk 0:00:23]}  Kxc1 {[%clk 0:00:12]} 70. a6 {[%clk 0:00:23]}  Nf1+ {[%clk 0:00:12]} 71. Kh4 {[%clk 0:00:24]}  Nd2 {[%clk 0:00:12]} 72. a7 {[%clk 0:00:24]} 1-0


[Site "https://www.chess.com"]

[Event "Titled Tuesday Blitz November 9 2021"]
[White "Urazayev, Arystanbek"]
[Black "Shuvalov, Evgenij"]
[WhiteFideId "13709810"]
[BlackFideId "4187237"]
[WhiteElo "2321"]
[BlackElo "2129"]
[Result "1/2-1/2"]
[Round "01"]
[TimeControl "180+1"]
[Date "2021.11.09"]
[WhiteClock "0:00:21"]
[BlackClock "0:00:18"]

1. e4 {[%clk 0:03:00]}  e6 {[%clk 0:02:59]} 2. d4 {[%clk 0:03:00]}  d5 {[%clk 0:02:59]} 3. Nd2 {[%clk 0:03:01]}  c5 {[%clk 0:02:58]} 4. exd5 {[%clk 0:03:01]}  exd5 {[%clk 0:02:59]} 5. Ngf3 {[%clk 0:03:01]}  Nc6 {[%clk 0:02:59]} 6. Bb5 {[%clk 0:02:59]}  Qe7+ {[%clk 0:02:59]} 7. Qe2 {[%clk 0:02:57]}  Qxe2+ {[%clk 0:02:58]} 8. Bxe2 {[%clk 0:02:57]}  Bf5 {[%clk 0:02:56]} 9. c3 {[%clk 0:02:53]}  cxd4 {[%clk 0:02:54]} 10. Nxd4 {[%clk 0:02:54]}  Nxd4 {[%clk 0:02:54]} 11. cxd4 {[%clk 0:02:54]}  a6 {[%clk 0:02:45]} 12. O-O {[%clk 0:02:53]}  Bd6 {[%clk 0:02:45]} 13. Bf3 {[%clk 0:02:53]}  Ne7 {[%clk 0:02:43]} 14. Nb1 {[%clk 0:02:51]}  Bxb1 {[%clk 0:02:35]} 15. Rxb1 {[%clk 0:02:51]}  Rc8 {[%clk 0:02:36]} 16. Be3 {[%clk 0:02:48]}  Kd7 {[%clk 0:02:26]} 17. Rfc1 {[%clk 0:02:47]}  Rxc1+ {[%clk 0:02:25]} 18. Rxc1 {[%clk 0:02:48]}  Rc8 {[%clk 0:02:25]} 19. Rxc8 {[%clk 0:02:48]}  Kxc8 {[%clk 0:02:25]} 20. Kf1 {[%clk 0:02:44]}  Kc7 {[%clk 0:02:22]} 21. Bd2 {[%clk 0:02:36]}  Kc6 {[%clk 0:02:19]} 22. g3 {[%clk 0:02:35]}  Nf5 {[%clk 0:02:14]} 23. Bc3 {[%clk 0:02:35]}  Be7 {[%clk 0:02:07]} 24. Bg4 {[%clk 0:02:32]}  Nd6 {[%clk 0:02:04]} 25. Ke2 {[%clk 0:02:28]}  Bf6 {[%clk 0:02:04]} 26. Kd3 {[%clk 0:02:27]}  Nb5 {[%clk 0:02:00]} 27. Bd2 {[%clk 0:02:14]}  Nxd4 {[%clk 0:01:55]} 28. h4 {[%clk 0:02:03]}  Ne6 {[%clk 0:01:50]} 29. b3 {[%clk 0:02:00]}  Nc5+ {[%clk 0:01:49]} 30. Ke2 {[%clk 0:02:00]}  Ne4 {[%clk 0:01:48]} 31. Be1 {[%clk 0:01:59]}  Nc3+ {[%clk 0:01:46]} 32. Kd3 {[%clk 0:01:12]}  Nxa2 {[%clk 0:01:37]} 33. f4 {[%clk 0:01:09]}  Kc5 {[%clk 0:01:11]} 34. Bc8 {[%clk 0:01:08]}  Nb4+ {[%clk 0:01:10]} 35. Ke2 {[%clk 0:00:47]}  b6 {[%clk 0:01:03]} 36. g4 {[%clk 0:00:47]}  Bd4 {[%clk 0:00:54]} 37. h5 {[%clk 0:00:42]}  h6 {[%clk 0:00:52]} 38. g5 {[%clk 0:00:40]}  a5 {[%clk 0:00:45]} 39. Bd2 {[%clk 0:00:40]}  Nc6 {[%clk 0:00:40]} 40. gxh6 {[%clk 0:00:40]}  gxh6 {[%clk 0:00:40]} 41. f5 {[%clk 0:00:40]}  Bg7 {[%clk 0:00:40]} 42. f6 {[%clk 0:00:41]}  Bxf6 {[%clk 0:00:40]} 43. Bxh6 {[%clk 0:00:40]}  Ne7 {[%clk 0:00:40]} 44. Bf8 {[%clk 0:00:26]}  Kb4 {[%clk 0:00:27]} 45. h6 {[%clk 0:00:27]}  Kxb3 {[%clk 0:00:28]} 46. Bd7 {[%clk 0:00:26]}  Ng6 {[%clk 0:00:24]} 47. Bg7 {[%clk 0:00:20]}  Bxg7 {[%clk 0:00:17]} 48. hxg7 {[%clk 0:00:20]}  Ne7 {[%clk 0:00:17]} 49. Be8 {[%clk 0:00:19]}  a4 {[%clk 0:00:16]} 50. Bxf7 {[%clk 0:00:20]}  a3 {[%clk 0:00:15]} 51. Bxd5+ {[%clk 0:00:20]}  Kb2 {[%clk 0:00:15]} 52. Kd3 {[%clk 0:00:19]}  a2 {[%clk 0:00:15]} 53. Bxa2 {[%clk 0:00:16]}  Kxa2 {[%clk 0:00:16]} 54. Kc4 {[%clk 0:00:17]}  Ka3 {[%clk 0:00:16]} 55. Kb5 {[%clk 0:00:18]}  Kb3 {[%clk 0:00:16]} 56. Kxb6 {[%clk 0:00:18]}  Kc4 {[%clk 0:00:16]} 57. Kc7 {[%clk 0:00:19]}  Kd5 {[%clk 0:00:16]} 58. Kd7 {[%clk 0:00:20]}  Ng8 {[%clk 0:00:17]} 59. Ke8 {[%clk 0:00:21]}  Ke5 {[%clk 0:00:17]} 60. Kf8 {[%clk 0:00:21]}  Nh6 {[%clk 0:00:17]} 61. Ke7 {[%clk 0:00:21]}  Kf5 {[%clk 0:00:17]} 62. Kf8 {[%clk 0:00:21]}  Kg6 {[%clk 0:00:17]} 63. g8=Q+ {[%clk 0:00:21]}  Nxg8 {[%clk 0:00:18]} 1/2-1/2


[Site "https://www.chess.com"]

[Event "Titled Tuesday Blitz November 9 2021"]
[White "Vovk, Orest"]
[Black "Zierk, Steven"]
[WhiteFideId "14113490"]
[BlackFideId "2034255"]
[WhiteElo "2203"]
[BlackElo "2494"]
[Result "1-0"]
[Round "01"]
[TimeControl "180+1"]
[Date "2021.11.09"]
[WhiteClock "0:00:07"]
[BlackClock "0:00:08"]

1. h4 {[%clk 0:02:58]}  d5 {[%clk 0:02:58]} 2. h5 {[%clk 0:02:58]}  h6 {[%clk 0:02:57]} 3. e4 {[%clk 0:02:58]}  dxe4 {[%clk 0:02:57]} 4. Nc3 {[%clk 0:02:58]}  Nf6 {[%clk 0:02:58]} 5. Qe2 {[%clk 0:02:55]}  Bg4 {[%clk 0:02:44]} 6. Qb5+ {[%clk 0:02:53]}  Nc6 {[%clk 0:02:37]} 7. Qxb7 {[%clk 0:02:49]}  Bd7 {[%clk 0:02:28]} 8. Bb5 {[%clk 0:02:43]}  Rb8 {[%clk 0:02:26]} 9. Qxc6 {[%clk 0:02:43]}  Bxc6 {[%clk 0:02:25]} 10. Bxc6+ {[%clk 0:02:44]}  Nd7 {[%clk 0:02:26]} 11. Nxe4 {[%clk 0:02:44]}  Rb6 {[%clk 0:02:26]} 12. Ba4 {[%clk 0:02:43]}  Re6 {[%clk 0:02:24]} 13. d3 {[%clk 0:02:42]}  f5 {[%clk 0:02:17]} 14. Bb3 {[%clk 0:02:41]}  Re5 {[%clk 0:02:12]} 15. f4 {[%clk 0:02:38]}  Ra5 {[%clk 0:01:58]} 16. Bd2 {[%clk 0:02:27]}  c6 {[%clk 0:01:50]} 17. Bxa5 {[%clk 0:02:23]}  Qxa5+ {[%clk 0:01:49]} 18. Nc3 {[%clk 0:02:17]}  e5 {[%clk 0:01:45]} 19. Ne2 {[%clk 0:02:05]}  exf4 {[%clk 0:01:37]} 20. Nxf4 {[%clk 0:01:37]}  Ba3 {[%clk 0:01:22]} 21. O-O-O {[%clk 0:01:10]}  Qxc3 {[%clk 0:01:20]} 22. bxa3 {[%clk 0:00:53]}  Nc5 {[%clk 0:01:17]} 23. Ng6 {[%clk 0:00:46]}  Nxb3+ {[%clk 0:01:00]} 24. axb3 {[%clk 0:00:46]}  Rg8 {[%clk 0:01:00]} 25. Rhe1+ {[%clk 0:00:41]}  Kd7 {[%clk 0:00:57]} 26. Re7+ {[%clk 0:00:41]}  Kc8 {[%clk 0:00:53]} 27. Rde1 {[%clk 0:00:40]}  Rd8 {[%clk 0:00:44]} 28. Kb1 {[%clk 0:00:37]}  Rd7 {[%clk 0:00:40]} 29. Re8+ {[%clk 0:00:33]}  Kb7 {[%clk 0:00:38]} 30. Nf4 {[%clk 0:00:32]}  a5 {[%clk 0:00:34]} 31. a4 {[%clk 0:00:24]}  Qd2 {[%clk 0:00:34]} 32. g3 {[%clk 0:00:20]}  Qf2 {[%clk 0:00:32]} 33. R1e3 {[%clk 0:00:19]}  c5 {[%clk 0:00:28]} 34. Kb2 {[%clk 0:00:19]}  Ka7 {[%clk 0:00:26]} 35. R8e5 {[%clk 0:00:19]}  Qd2 {[%clk 0:00:21]} 36. Ne6 {[%clk 0:00:17]}  c4 {[%clk 0:00:20]} 37. dxc4 {[%clk 0:00:14]}  Re7 {[%clk 0:00:20]} 38. c5 {[%clk 0:00:12]}  Qb4 {[%clk 0:00:18]} 39. c6 {[%clk 0:00:12]}  Qd6 {[%clk 0:00:18]} 40. c7 {[%clk 0:00:12]}  Rxc7 {[%clk 0:00:18]} 41. Nxc7 {[%clk 0:00:11]}  Qd4+ {[%clk 0:00:18]} 42. Ka2 {[%clk 0:00:09]}  Qd2 {[%clk 0:00:19]} 43. Nb5+ {[%clk 0:00:08]}  Kb6 {[%clk 0:00:19]} 44. Re2 {[%clk 0:00:09]}  Qd1 {[%clk 0:00:18]} 45. Re6+ {[%clk 0:00:10]}  Kb7 {[%clk 0:00:18]} 46. Re7+ {[%clk 0:00:09]}  Kb6 {[%clk 0:00:17]} 47. R7e3 {[%clk 0:00:10]}  f4 {[%clk 0:00:17]} 48. gxf4 {[%clk 0:00:10]}  Qf1 {[%clk 0:00:16]} 49. Re6+ {[%clk 0:00:10]}  Kb7 {[%clk 0:00:16]} 50. R2e4 {[%clk 0:00:11]}  Qg2 {[%clk 0:00:15]} 51. Rc4 {[%clk 0:00:10]}  Kb8 {[%clk 0:00:08]} 52. Rc7 {[%clk 0:00:07]} 1-0


[Site "https://www.chess.com"]

[Event "Titled Tuesday Blitz November 9 2021"]
[White "Aloma Vidal, Robert"]
[Black "Bazeev, German"]
[WhiteFideId "2260409"]
[BlackFideId "24119350"]
[WhiteElo "2435"]
[BlackElo "2462"]
[Result "1/2-1/2"]
[Round "02"]
[TimeControl "180+1"]
[Date "2021.11.09"]
[WhiteClock "0:00:09"]
[BlackClock "0:00:07"]

1. e4 {[%clk 0:03:00]}  c6 {[%clk 0:02:58]} 2. d4 {[%clk 0:03:00]}  d5 {[%clk 0:02:58]} 3. e5 {[%clk 0:03:00]}  Bf5 {[%clk 0:02:58]} 4. Nf3 {[%clk 0:03:00]}  e6 {[%clk 0:02:58]} 5. Be2 {[%clk 0:03:00]}  Nd7 {[%clk 0:02:58]} 6. O-O {[%clk 0:03:00]}  a6 {[%clk 0:02:58]} 7. b3 {[%clk 0:02:45]}  h6 {[%clk 0:02:58]} 8. c4 {[%clk 0:02:44]}  g5 {[%clk 0:02:58]} 9. Nc3 {[%clk 0:02:42]}  Ne7 {[%clk 0:02:58]} 10. Ba3 {[%clk 0:02:36]}  b5 {[%clk 0:02:37]} 11. Bd6 {[%clk 0:02:08]}  dxc4 {[%clk 0:02:18]} 12. bxc4 {[%clk 0:02:07]}  bxc4 {[%clk 0:02:19]} 13. Bxc4 {[%clk 0:02:03]}  Nd5 {[%clk 0:02:16]} 14. Ne2 {[%clk 0:01:25]}  Bxd6 {[%clk 0:02:00]} 15. exd6 {[%clk 0:01:26]}  N7b6 {[%clk 0:02:00]} 16. Rc1 {[%clk 0:01:17]}  Qxd6 {[%clk 0:01:58]} 17. Ng3 {[%clk 0:01:18]}  Bh7 {[%clk 0:01:50]} 18. h4 {[%clk 0:01:18]}  gxh4 {[%clk 0:01:46]} 19. Nxh4 {[%clk 0:01:19]}  Rg8 {[%clk 0:01:25]} 20. Qh5 {[%clk 0:01:07]}  Qf4 {[%clk 0:01:17]} 21. Nf3 {[%clk 0:01:02]}  Bg6 {[%clk 0:00:55]} 22. Qe5 {[%clk 0:00:57]}  Nxc4 {[%clk 0:00:25]} 23. Rxc4 {[%clk 0:00:56]}  Bd3 {[%clk 0:00:25]} 24. Rxc6 {[%clk 0:00:51]}  Qxe5 {[%clk 0:00:25]} 25. Nxe5 {[%clk 0:00:47]}  Bxf1 {[%clk 0:00:25]} 26. Kxf1 {[%clk 0:00:47]}  Ke7 {[%clk 0:00:26]} 27. Rc1 {[%clk 0:00:29]}  Rgc8 {[%clk 0:00:26]} 28. Re1 {[%clk 0:00:25]}  Rab8 {[%clk 0:00:26]} 29. Ne4 {[%clk 0:00:25]}  Rc2 {[%clk 0:00:23]} 30. Nc5 {[%clk 0:00:24]}  Rbb2 {[%clk 0:00:22]} 31. Ned3 {[%clk 0:00:24]}  Rxa2 {[%clk 0:00:22]} 32. Kg1 {[%clk 0:00:22]}  a5 {[%clk 0:00:21]} 33. Rb1 {[%clk 0:00:20]}  Nb4 {[%clk 0:00:22]} 34. Nxb4 {[%clk 0:00:20]}  axb4 {[%clk 0:00:21]} 35. Rxb4 {[%clk 0:00:21]}  Rxf2 {[%clk 0:00:21]} 36. Rb7+ {[%clk 0:00:20]}  Kf6 {[%clk 0:00:18]} 37. Ne4+ {[%clk 0:00:19]}  Kg6 {[%clk 0:00:17]} 38. Nxf2 {[%clk 0:00:20]}  Rd2 {[%clk 0:00:17]} 39. Rd7 {[%clk 0:00:19]}  h5 {[%clk 0:00:15]} 40. g3 {[%clk 0:00:20]}  e5 {[%clk 0:00:13]} 41. d5 {[%clk 0:00:20]}  f5 {[%clk 0:00:13]} 42. Rd6+ {[%clk 0:00:19]}  Kg5 {[%clk 0:00:13]} 43. Rd8 {[%clk 0:00:19]}  e4 {[%clk 0:00:13]} 44. Rg8+ {[%clk 0:00:19]}  Kf6 {[%clk 0:00:13]} 45. Kf1 {[%clk 0:00:19]}  Rxd5 {[%clk 0:00:13]} 46. Ke2 {[%clk 0:00:19]}  Ra5 {[%clk 0:00:13]} 47. Nh3 {[%clk 0:00:19]}  Ra2+ {[%clk 0:00:12]} 48. Ke3 {[%clk 0:00:19]}  Ra3+ {[%clk 0:00:13]} 49. Kd4 {[%clk 0:00:19]}  h4 {[%clk 0:00:12]} 50. Nf4 {[%clk 0:00:17]}  Rxg3 {[%clk 0:00:07]} 51. Nh5+ {[%clk 0:00:15]}  Kf7 {[%clk 0:00:06]} 52. Nxg3 {[%clk 0:00:07]}  Kxg8 {[%clk 0:00:05]} 53. Nxf5 {[%clk 0:00:08]}  h3 {[%clk 0:00:06]} 54. Kxe4 {[%clk 0:00:08]}  h2 {[%clk 0:00:06]} 55. Ng3 {[%clk 0:00:09]}  h1=Q+ {[%clk 0:00:07]} 56. Nxh1 {[%clk 0:00:09]} 1/2-1/2


[Site "https://www.chess.com"]

[Event "Titled Tuesday Blitz November 9 2021"]
[White "Bok, Benjamin"]
[Black "Goltseva, Ekaterina"]
[WhiteFideId "1017063"]
[BlackFideId "24173770"]
[WhiteElo "2658"]
[BlackElo "2163"]
[Result "1-0"]
[Round "02"]
[TimeControl "180+1"]
[Date "2021.11.09"]
[WhiteClock "0:01:59"]
[BlackClock "0:00:56"]

1. d4 {[%clk 0:03:00]}  Nf6 {[%clk 0:02:59]} 2. c4 {[%clk 0:03:00]}  e6 {[%clk 0:02:59]} 3. Nf3 {[%clk 0:03:00]}  d5 {[%clk 0:03:00]} 4. Nc3 {[%clk 0:03:01]}  dxc4 {[%clk 0:03:00]} 5. e4 {[%clk 0:03:00]}  b5 {[%clk 0:03:01]} 6. e5 {[%clk 0:03:01]}  Nd5 {[%clk 0:03:01]} 7. Nxb5 {[%clk 0:03:01]}  Nb6 {[%clk 0:03:02]} 8. Be2 {[%clk 0:03:01]}  Be7 {[%clk 0:03:02]} 9. O-O {[%clk 0:03:00]}  Nc6 {[%clk 0:03:03]} 10. Qd2 {[%clk 0:02:56]}  Bb7 {[%clk 0:03:01]} 11. Rd1 {[%clk 0:02:55]}  Qd7 {[%clk 0:03:02]} 12. Nc3 {[%clk 0:02:41]}  Nb4 {[%clk 0:02:59]} 13. a3 {[%clk 0:02:19]}  Nd3 {[%clk 0:02:31]} 14. Bxd3 {[%clk 0:02:14]}  Bxf3 {[%clk 0:02:28]} 15. gxf3 {[%clk 0:02:11]}  cxd3 {[%clk 0:02:27]} 16. Qxd3 {[%clk 0:02:12]}  Nd5 {[%clk 0:02:22]} 17. Nxd5 {[%clk 0:02:08]}  Qxd5 {[%clk 0:02:21]} 18. Qe4 {[%clk 0:02:09]}  Rd8 {[%clk 0:02:15]} 19. Be3 {[%clk 0:02:08]}  O-O {[%clk 0:02:13]} 20. Rac1 {[%clk 0:02:06]}  Qa5 {[%clk 0:01:41]} 21. Qc6 {[%clk 0:01:58]}  Rc8 {[%clk 0:01:20]} 22. d5 {[%clk 0:01:58]}  exd5 {[%clk 0:01:07]} 23. Rxd5 {[%clk 0:01:59]}  Qb6 {[%clk 0:00:56]} 24. Bxb6 {[%clk 0:01:57]}  cxb6 {[%clk 0:00:56]} 25. Qxc8 {[%clk 0:01:57]}  Rxc8 {[%clk 0:00:56]} 26. Rxc8+ {[%clk 0:01:58]}  Bd8 {[%clk 0:00:56]} 27. Rdxd8# {[%clk 0:01:59]} 1-0


[Site "https://www.chess.com"]

[Event "Titled Tuesday Blitz November 9 2021"]
[White "Cunjalo, Faris"]
[Black "Potapova, Margarita"]
[WhiteFideId "14410710"]
[BlackFideId "14126869"]
[WhiteElo "2263"]
[BlackElo "2247"]
[Result "1-0"]
[Round "02"]
[TimeControl "180+1"]
[Date "2021.11.09"]
[WhiteClock "0:00:11"]
[BlackClock "0:00:03"]

1. d4 {[%clk 0:03:00]}  Nf6 {[%clk 0:02:59]} 2. Bf4 {[%clk 0:03:00]}  g6 {[%clk 0:02:59]} 3. Nc3 {[%clk 0:03:00]}  Bg7 {[%clk 0:03:00]} 4. e4 {[%clk 0:03:00]}  d5 {[%clk 0:03:00]} 5. e5 {[%clk 0:03:00]}  Ne4 {[%clk 0:03:00]} 6. Nxe4 {[%clk 0:02:59]}  dxe4 {[%clk 0:03:01]} 7. Qd2 {[%clk 0:02:59]}  c5 {[%clk 0:03:00]} 8. d5 {[%clk 0:02:35]}  O-O {[%clk 0:02:31]} 9. O-O-O {[%clk 0:02:10]}  Qb6 {[%clk 0:02:19]} 10. Qe3 {[%clk 0:01:53]}  Bg4 {[%clk 0:01:38]} 11. f3 {[%clk 0:01:44]}  exf3 {[%clk 0:01:37]} 12. Nxf3 {[%clk 0:01:45]}  Nd7 {[%clk 0:01:19]} 13. h3 {[%clk 0:01:24]}  Bxf3 {[%clk 0:01:19]} 14. gxf3 {[%clk 0:01:25]}  c4 {[%clk 0:01:04]} 15. Re1 {[%clk 0:00:45]}  Rfc8 {[%clk 0:00:30]} 16. c3 {[%clk 0:00:35]}  Qxe3+ {[%clk 0:00:27]} 17. Rxe3 {[%clk 0:00:36]}  b5 {[%clk 0:00:28]} 18. Be2 {[%clk 0:00:24]}  Nc5 {[%clk 0:00:20]} 19. Rd1 {[%clk 0:00:24]}  a5 {[%clk 0:00:18]} 20. Bg3 {[%clk 0:00:20]}  Rd8 {[%clk 0:00:12]} 21. f4 {[%clk 0:00:20]}  e6 {[%clk 0:00:12]} 22. d6 {[%clk 0:00:20]}  Rac8 {[%clk 0:00:11]} 23. Kc2 {[%clk 0:00:19]}  Rd7 {[%clk 0:00:11]} 24. Bf3 {[%clk 0:00:18]}  Nd3 {[%clk 0:00:10]} 25. Be4 {[%clk 0:00:18]}  Nc5 {[%clk 0:00:09]} 26. Bg2 {[%clk 0:00:18]}  b4 {[%clk 0:00:10]} 27. Re2 {[%clk 0:00:16]}  b3+ {[%clk 0:00:09]} 28. Kb1 {[%clk 0:00:14]}  a4 {[%clk 0:00:08]} 29. a3 {[%clk 0:00:14]}  Kf8 {[%clk 0:00:07]} 30. Rd4 {[%clk 0:00:15]}  Na6 {[%clk 0:00:06]} 31. Ree4 {[%clk 0:00:14]}  f5 {[%clk 0:00:04]} 32. Rxc4 {[%clk 0:00:13]}  Rcd8 {[%clk 0:00:05]} 33. Red4 {[%clk 0:00:13]}  g5 {[%clk 0:00:05]} 34. Bc6 {[%clk 0:00:13]}  Rf7 {[%clk 0:00:05]} 35. Bxa4 {[%clk 0:00:12]}  gxf4 {[%clk 0:00:04]} 36. Bxf4 {[%clk 0:00:13]}  Nb8 {[%clk 0:00:04]} 37. Rc7 {[%clk 0:00:11]}  Nd7 {[%clk 0:00:04]} 38. Bxd7 {[%clk 0:00:10]}  Rfxd7 {[%clk 0:00:03]} 39. Rb4 {[%clk 0:00:08]}  Rxc7 {[%clk 0:00:02]} 40. dxc7 {[%clk 0:00:09]}  Rd1+ {[%clk 0:00:02]} 41. Bc1 {[%clk 0:00:10]}  Bh6 {[%clk 0:00:01]} 42. c8=Q+ {[%clk 0:00:10]}  Kf7 {[%clk 0:00:02]} 43. Rb7+ {[%clk 0:00:10]}  Kg6 {[%clk 0:00:02]} 44. Qxe6+ {[%clk 0:00:10]}  Kh5 {[%clk 0:00:03]} 45. Qxh6# {[%clk 0:00:11]} 1-0


[Site "https://www.chess.com"]

[Event "Titled Tuesday Blitz November 9 2021"]
[White "Durarbayli, Vasif"]
[Black "Bartel, Michal"]
[WhiteFideId "13402935"]
[BlackFideId "1119257"]
[WhiteElo "2522"]
[BlackElo "2211"]
[Result "1-0"]
[Round "02"]
[TimeControl "180+1"]
[Date "2021.11.09"]
[WhiteClock "0:01:28"]
[BlackClock "0:00:40"]

1. e4 {[%clk 0:03:00]}  e5 {[%clk 0:03:00]} 2. Nc3 {[%clk 0:02:59]}  Nf6 {[%clk 0:02:59]} 3. d4 {[%clk 0:02:59]}  exd4 {[%clk 0:02:59]} 4. Qxd4 {[%clk 0:03:00]}  Nc6 {[%clk 0:02:59]} 5. Qd3 {[%clk 0:03:00]}  d6 {[%clk 0:02:59]} 6. Bg5 {[%clk 0:02:58]}  Be7 {[%clk 0:02:59]} 7. O-O-O {[%clk 0:02:50]}  Be6 {[%clk 0:02:56]} 8. f4 {[%clk 0:02:50]}  a6 {[%clk 0:02:50]} 9. Nf3 {[%clk 0:02:50]}  b5 {[%clk 0:02:48]} 10. Qe2 {[%clk 0:02:36]}  Qc8 {[%clk 0:02:41]} 11. e5 {[%clk 0:02:34]}  dxe5 {[%clk 0:02:38]} 12. fxe5 {[%clk 0:02:30]}  Nd7 {[%clk 0:02:33]} 13. Qe4 {[%clk 0:02:29]}  Bxg5+ {[%clk 0:02:26]} 14. Nxg5 {[%clk 0:02:30]}  Nd8 {[%clk 0:02:26]} 15. Be2 {[%clk 0:02:25]}  h6 {[%clk 0:02:19]} 16. Nxe6 {[%clk 0:02:22]}  Nxe6 {[%clk 0:02:20]} 17. Rhf1 {[%clk 0:02:22]}  O-O {[%clk 0:02:06]} 18. Nd5 {[%clk 0:02:20]}  Qd8 {[%clk 0:01:59]} 19. Bd3 {[%clk 0:02:18]}  Qg5+ {[%clk 0:01:52]} 20. Kb1 {[%clk 0:02:17]}  g6 {[%clk 0:01:52]} 21. h4 {[%clk 0:01:58]}  Qxe5 {[%clk 0:01:41]} 22. Nf6+ {[%clk 0:01:54]}  Qxf6 {[%clk 0:01:40]} 23. Rxf6 {[%clk 0:01:54]}  Nxf6 {[%clk 0:01:41]} 24. Qf3 {[%clk 0:01:47]}  Kg7 {[%clk 0:01:40]} 25. g4 {[%clk 0:01:47]}  Rad8 {[%clk 0:01:33]} 26. Rf1 {[%clk 0:01:47]}  Nd5 {[%clk 0:01:31]} 27. a3 {[%clk 0:01:41]}  Ndf4 {[%clk 0:01:29]} 28. Be4 {[%clk 0:01:41]}  Rd4 {[%clk 0:01:23]} 29. Qc3 {[%clk 0:01:39]}  c5 {[%clk 0:01:22]} 30. Qe3 {[%clk 0:01:32]}  Re8 {[%clk 0:01:13]} 31. c3 {[%clk 0:01:31]}  Ra4 {[%clk 0:00:50]} 32. Bc2 {[%clk 0:01:29]}  Nd5 {[%clk 0:00:42]} 33. Qe5+ {[%clk 0:01:28]}  f6 {[%clk 0:00:40]} 34. Qxd5 {[%clk 0:01:28]} 1-0


[Site "https://www.chess.com"]